bitfinex/quotes_SOLUSD_20260213
["timestamp","ask_amount","ask_price","bid_price","bid_amount"]
[1770947365070,0.76245279,78.824,78.791,0.79586488]
[1770947365255,3.96136794,78.83,78.791,0.79586488]
[1770947365256,0.76245279,78.822,78.791,0.79586488]
[1770947365571,0.76245279,78.819,78.785,12.69277146]
[1770947366582,0.76245279,78.819,78.781,12.69341592]
[1770947366767,0.76245279,78.819,78.782,0.79586488]
[1770947368471,0.76245279,78.819,78.784,0.79586488]
[1770947368973,0.76245279,78.817,78.784,0.79586488]
[1770947370881,0.76245279,78.817,78.791,0.78816441]
[1770947372886,0.77550368,78.816,78.79,12.69195699]
[1770947373384,0.77550368,78.816,78.791,0.78393591]
[1770947374882,0.82854014,78.815,78.792,12.69164382]
[1770947376283,0.82854014,78.815,78.792,45.20468928]
[1770947376466,3.96136794,78.83,78.793,0.78393591]
[1770947376467,0.82854014,78.813,78.793,0.78393591]
[1770947377369,0.82854014,78.813,78.794,12.69132167]
[1770947377690,0.82854014,78.813,78.795,0.78393591]
[1770947379089,0.82854014,78.813,78.79,16.65320473]
[1770947379388,0.82854014,78.813,78.79,12.69183679]
[1770947379584,0.82854014,78.813,78.786,0.78393591]
[1770947381386,0.82854014,78.829,78.791,0.78393591]
[1770947381682,0.82854014,78.829,78.79,3.96136794]
[1770947381683,0.82854014,78.827,78.793,0.78393591]
[1770947383191,0.82854014,78.827,78.795,0.78393591]
[1770947383383,0.82854014,78.825,78.801,0.78393591]
[1770947383592,0.82854014,78.823,78.795,0.78393591]
[1770947385181,0.82854014,78.823,78.796,13.47493545]
[1770947385493,0.82854014,78.823,78.797,0.78393591]
[1770947386679,0.82854014,78.821,78.797,0.78393591]
[1770947387087,0.82854014,78.819,78.798,12.69067742]
[1770947389175,0.82854014,78.819,78.793,0.78393591]
[1770947390285,0.82854014,78.819,78.795,0.78393591]
[1770947392409,0.82854014,78.819,78.797,0.78393591]
[1770947392881,39.72,78.82,78.801,0.78393591]
[1770947393277,0.82854014,78.831,78.801,0.78393591]
[1770947393600,39.72,78.825,78.801,0.78393591]
[1770947393976,0.82854014,78.831,78.801,0.78393591]
[1770947394194,0.82854014,78.838,78.811,0.78393591]
[1770947394388,39.72,78.837,78.811,0.78393591]
[1770947394586,39.72,78.837,78.813,0.78393591]
[1770947394791,40.54854014,78.837,78.813,0.78393591]
[1770947394986,0.82854014,78.836,78.813,0.78393591]
[1770947395480,0.82854014,78.836,78.82,3.9653167]
[1770947396605,0.82854014,78.836,78.821,12.68697428]
[1770947400201,3.9653167,78.86,78.822,0.78393591]
[1770947400202,0.82854014,78.851,78.822,0.78393591]
[1770947400392,0.82854014,78.849,78.822,0.78393591]
[1770947400906,39.74,78.848,78.822,0.78393591]
[1770947401084,39.74,78.848,78.831,0.83621875]
[1770947401405,0.82854014,78.849,78.831,0.83621875]
[1770947401904,0.82854014,78.849,78.832,12.68520397]
[1770947402103,0.82854014,78.849,78.828,12.68581633]
[1770947402293,0.82854014,78.849,78.824,12.68644407]
[1770947402794,0.82854014,78.849,78.824,13.52266282]
[1770947402995,31.70017219,78.864,78.824,13.52266282]
[1770947402996,0.79908892,78.88,78.841,0.83621875]
[1770947403183,0.79908892,78.878,78.841,0.83621875]
[1770947403698,0.79908892,78.876,78.841,0.83621875]
[1770947403901,0.79908892,78.869,78.842,12.68359503]
[1770947404500,0.79908892,78.868,78.842,13.51981378]
[1770947404892,0.79908892,78.868,78.843,0.83621875]
[1770947405313,0.89908892,78.9,78.861,0.83621875]
[1770947405608,0.89908892,78.9,78.88,3.9653167]
[1770947406203,0.89908892,78.9,78.88,16.6427349]
[1770947406504,0.89908892,78.9,78.88,17.47895365]
[1770947406710,0.89908892,78.9,78.881,0.83621875]
[1770947406916,0.79908892,78.916,78.891,0.83621875]
[1770947407097,0.79908892,78.916,78.891,0.73480794]
[1770947408090,3.9653167,78.92,78.868,52.16]
[1770947408091,0.79908892,78.899,78.869,12.67923796]
[1770947408411,0.79908892,78.899,78.871,12.67893141]
[1770947409098,0.79908892,78.899,78.871,13.51515016]
[1770947409312,0.79908892,78.898,78.868,52.16]
[1770947409612,0.79908892,78.889,78.85,4.80153545]
[1770947410127,39.72,78.897,78.847,12.68279072]
[1770947410128,0.79908892,78.879,78.847,12.68279072]
[1770947410417,3.9653167,78.88,78.841,12.68375591]
[1770947410418,0.79908892,78.877,78.841,12.68375591]
[1770947410716,0.79908892,78.877,78.842,0.83621875]
[1770947413022,0.79908892,78.869,78.84,3.9653167]
[1770947413406,0.79908892,78.869,78.839,12.6839885]
[1770947414014,0.79908892,78.869,78.84,3.9653167]
[1770947414408,0.79908892,78.869,78.83,12.68546404]
[1770947414616,0.79908892,78.859,78.83,12.68546404]
[1770947415406,12.68101439,78.859,78.83,12.68546404]
[1770947415608,0.79908892,78.858,78.83,12.68546404]
[1770947418118,0.79908892,78.858,78.83,0.83621875]
[1770947418313,31.69531923,78.876,78.821,12.68697428]
[1770947418314,0.79908892,78.869,78.841,0.83621875]
[1770947419426,0.79908892,78.869,78.84,3.9653167]
[1770947419427,0.79908892,78.876,78.843,0.83621875]
[1770947420524,0.79908892,78.876,78.844,12.68327329]
[1770947420829,0.79908892,78.876,78.845,0.83621875]
[1770947421406,0.79908892,78.876,78.84,3.9653167]
[1770947421407,0.79908892,78.869,78.84,12.68390714]
[1770947422528,0.79908892,78.869,78.834,12.68488215]
[1770947423328,0.79908892,78.869,78.834,13.5211009]
[1770947423514,0.79908892,78.867,78.834,13.5211009]
[1770947423836,3.9653167,78.86,78.83,12.6854479]
[1770947424020,0.79908892,78.859,78.83,12.6854479]
[1770947424919,0.79908892,78.857,78.829,52.06]
[1770947425126,0.79908892,78.839,78.814,12.68810109]
[1770947426418,0.79908892,78.839,78.815,0.83621875]
[1770947426620,0.79908892,78.849,78.815,0.83621875]
[1770947427138,0.79908892,78.849,78.817,0.83621875]
[1770947427443,0.79908892,78.847,78.817,0.83621875]
[1770947429433,0.79908892,78.847,78.819,0.83621875]
[1770947432936,0.79908892,78.847,78.818,12.68745717]
[1770947433137,0.82233789,78.851,78.812,0.77661942]
[1770947433438,0.82233789,78.849,78.812,0.77661942]
[1770947434219,12.6826278,78.849,78.813,12.68826208]
[1770947434420,0.82233789,78.848,78.814,0.78097113]
[1770947435426,0.82233789,78.848,78.816,0.78097113]
[1770947436532,0.82233789,78.848,78.818,0.78097113]
[1770947438129,0.82233789,78.848,78.821,0.78097113]
[1770947438535,0.82233789,78.848,78.823,0.78097113]
[1770947438840,0.82233789,78.859,78.823,0.78097113]
[1770947439142,0.82233789,78.858,78.823,0.78097113]
[1770947441032,0.82233789,78.858,78.825,0.78097113]
[1770947442621,0.82233789,78.871,78.831,0.78097113]
[1770947442829,0.82233789,78.871,78.832,0.78097113]
[1770947443226,0.82233789,78.869,78.834,0.78097113]
[1770947445749,0.82233789,78.869,78.836,0.78097113]
[1770947448657,0.82233789,78.869,78.838,0.78097113]
[1770947450147,0.82233789,78.867,78.838,0.78097113]
[1770947450444,0.82233789,78.874,78.841,0.78097113]
[1770947450948,0.82233789,78.873,78.841,0.78097113]
[1770947452931,0.82233789,78.873,78.843,0.78097113]
[1770947453442,12.67877066,78.872,78.843,0.78097113]
[1770947453652,0.82233789,78.871,78.843,0.78097113]
[1770947455135,0.82233789,78.871,78.844,12.68327329]
[1770947456435,0.82233789,78.869,78.839,12.68392893]
[1770947456945,0.82233789,78.869,78.839,13.46490006]
[1770947457755,0.82233789,78.867,78.84,0.78097113]
[1770947459651,0.82233789,78.867,78.842,0.78097113]
[1770947460437,0.78211516,78.865,78.842,0.78097113]
[1770947464861,0.78211516,78.863,78.842,0.78097113]
[1770947465249,0.78211516,78.863,78.837,12.68426532]
[1770947465442,0.78211516,78.863,78.838,0.78501022]
[1770947466750,0.78211516,78.863,78.839,12.68407767]
[1770947466950,0.78211516,78.863,78.84,0.78501022]
[1770947467147,0.78211516,78.874,78.841,0.78501022]
[1770947468536,0.78211516,78.872,78.843,0.78501022]
[1770947473059,0.78211516,78.869,78.835,0.78501022]
[1770947475347,0.78211516,78.869,78.837,0.78501022]
[1770947477361,0.78211516,78.869,78.833,52.36]
[1770947477362,0.78211516,78.869,78.839,0.78501022]
[1770947479654,0.78211516,78.869,78.84,12.68391679]
[1770947479875,0.78211516,78.869,78.841,0.78501022]
[1770947482075,0.78211516,78.869,78.842,13.46860525]
[1770947482458,0.78211516,78.869,78.843,0.78501022]
[1770947484292,0.78211516,78.869,78.845,0.78501022]
[1770947487385,0.78211516,78.869,78.846,12.68295157]
[1770947489681,0.78211516,78.867,78.845,0.78501022]
[1770947489860,0.78211516,78.867,78.833,84.07231031]
[1770947489861,0.78211516,78.867,78.84,0.78501022]
[1770947497409,0.78211516,78.867,78.842,0.79792169]
[1770947500582,0.78211516,78.867,78.844,0.79792169]
[1770947503091,0.78211516,78.867,78.834,31.71220539]
[1770947503092,0.78211516,78.867,78.846,0.79792169]
[1770947504198,0.78211516,78.867,78.845,12.68311243]
[1770947504492,0.78211516,78.867,78.846,0.79792169]
[1770947505094,0.80525339,78.878,78.848,0.79792169]
[1770947505294,0.80525339,78.882,78.851,0.79792169]
[1770947507175,0.80525339,78.882,78.853,0.79792169]
[1770947510301,0.80525339,78.882,78.855,0.79792169]
[1770947512495,0.80525339,78.895,78.861,0.79792169]
[1770947514606,0.80525339,78.869,78.844,12.68316651]
[1770947515098,0.80525339,78.869,78.837,13.48222572]
[1770947516600,44.36332293,78.894,78.815,31.71976279]
[1770947516601,0.80525339,78.859,78.815,31.71976279]
[1770947516788,0.80525339,78.859,78.816,0.79792169]
[1770947517189,0.80525339,78.859,78.793,4.61729252]
[1770947517190,0.80525339,78.839,78.804,0.79792169]
[1770947517487,0.80525339,78.839,78.805,12.68955015]
[1770947518297,12.68423856,78.838,78.801,12.69019428]
[1770947518502,0.80525339,78.837,78.801,13.48811597]
[1770947519000,12.68423856,78.838,78.801,13.48811597]
[1770947519001,0.80525339,78.829,78.801,13.48811597]
[1770947519309,0.80525339,78.829,78.802,0.79792169]
[1770947520191,0.80525339,78.829,78.8,3.95867254]
[1770947520192,0.80525339,78.829,78.804,0.79792169]
[1770947522618,39.5,78.85,78.811,0.82304339]
[1770947522619,0.85205552,78.838,78.811,0.82304339]
[1770947522797,4.61729252,78.856,78.821,0.82304339]
[1770947522798,0.85205552,78.849,78.821,0.82304339]
[1770947523897,0.85205552,78.849,78.823,0.82304339]
[1770947526112,0.85205552,78.849,78.825,0.82304339]
[1770947527312,0.85205552,78.849,78.827,0.82304339]
[1770947527615,0.85205552,78.856,78.827,0.82304339]
[1770947527912,0.85205552,78.867,78.831,0.82304339]
[1770947528094,0.85205552,78.865,78.831,0.82304339]
[1770947528295,0.85205552,78.859,78.831,0.82304339]
[1770947528509,0.85205552,78.859,78.826,65.30616953]
[1770947529695,0.85205552,78.857,78.826,65.30616953]
[1770947530106,0.85205552,78.849,78.813,0.82304339]
[1770947530299,0.85205552,78.839,78.808,0.82304339]
[1770947530500,0.85205552,78.839,78.811,0.82304339]
[1770947532121,0.85205552,78.839,78.812,12.68842308]
[1770947532921,0.85205552,78.837,78.807,12.68920401]
[1770947533802,0.85205552,78.837,78.807,13.5122474]
[1770947534621,0.85205552,78.835,78.808,0.82304339]
[1770947535004,0.85205552,78.835,78.801,44.41567999]
[1770947535005,0.85205552,78.829,78.802,0.82304339]
[1770947536104,0.85205552,78.829,78.811,0.82304339]
[1770947536912,0.85205552,78.829,78.804,0.82304339]
[1770947538324,0.85205552,78.827,78.797,13.51388187]
[1770947538526,0.85205552,78.827,78.798,0.82304339]
[1770947541125,0.85205552,78.827,78.8,0.82304339]
[1770947541627,0.85205552,78.827,78.801,0.82304339]
[1770947543330,0.85205552,78.827,78.803,0.82304339]
[1770947544829,0.85205552,78.827,78.805,0.82304339]
[1770947546327,0.85205552,78.827,78.807,0.82304339]
[1770947547531,0.85205552,78.827,78.802,12.68989684]
[1770947547827,0.85205552,78.827,78.802,13.51294023]
[1770947548029,0.85205552,78.827,78.803,0.82304339]
[1770947548215,0.85205552,78.827,78.804,12.68971118]
[1770947551335,0.85205552,78.827,78.798,0.80565991]
[1770947551631,0.80651192,78.826,78.794,12.69132167]
[1770947552038,13.49268145,78.826,78.801,0.80565991]
[1770947552334,13.49268145,78.826,78.798,12.69059086]
[1770947552335,0.80651192,78.825,78.798,12.69059086]
[1770947553531,0.76152957,78.823,78.798,12.69059086]
[1770947554034,0.76152957,78.823,78.793,0.82321359]
[1770947554513,0.76152957,78.823,78.795,0.82321359]
[1770947555919,0.76152957,78.821,78.795,0.82321359]
[1770947557234,0.76152957,78.821,78.797,0.82321359]
[1770947558524,0.76152957,78.821,78.799,0.82321359]
[1770947559938,3.95867254,78.83,78.791,12.6918049]
[1770947559939,0.76152957,78.819,78.791,12.6918049]
[1770947560433,0.76152957,78.819,78.792,0.82321359]
[1770947562023,0.76152957,78.819,78.793,13.51469633]
[1770947562642,0.76152957,78.819,78.794,0.82321359]
[1770947563048,0.76152957,78.819,78.782,84.53300828]
[1770947563049,0.76152957,78.817,78.782,52.8]
[1770947563236,12.68745717,78.818,78.78,0.2]
[1770947563237,0.76152957,78.799,78.78,0.2]
[1770947564049,12.69067742,78.798,78.78,0.2]
[1770947564348,0.76152957,78.797,78.78,0.2]
[1770947566244,0.76152957,78.789,78.77,0.2]
[1770947566436,0.76152957,78.789,78.76,0.2]
[1770947567746,0.76152957,78.787,78.76,4.15867254]
[1770947568547,0.76152957,78.787,78.76,4.98188613]
[1770947569138,0.76152957,78.787,78.762,12.69647799]
[1770947569452,0.76152957,78.787,78.763,0.82321359]
[1770947569923,0.76152957,78.801,78.763,0.82321359]
[1770947571338,0.76152957,78.799,78.765,0.82321359]
[1770947573445,0.76152957,78.797,78.766,12.69583322]
[1770947573949,0.76152957,78.797,78.76,0.2]
[1770947575241,0.76152957,78.789,78.76,0.2]
[1770947575751,0.76152957,78.787,78.76,0.2]
[1770947576646,0.76152957,78.787,78.76,1.02321359]
[1770947577148,0.76152957,78.787,78.761,0.82321359]
[1770947577345,13.45323003,78.792,78.761,0.82321359]
[1770947577754,0.76152957,78.791,78.761,0.82321359]
[1770947578451,0.76152957,78.789,78.763,0.82321359]
[1770947581644,0.77221132,78.787,78.76,0.2]
[1770947582034,0.77221132,78.787,78.761,12.69663919]
[1770947584157,0.77221132,78.787,78.762,0.74210845]
[1770947586456,0.77221132,78.787,78.764,0.74210845]
[1770947591357,0.77221132,78.792,78.766,0.74210845]
[1770947593169,0.77221132,78.792,78.767,12.69567204]
[1770947593459,0.77221132,78.79,78.761,12.69654627]
[1770947593667,0.77221132,78.789,78.761,12.69654627]
[1770947596062,0.77221132,78.789,78.762,0.74210845]
[1770947597363,0.77221132,78.789,78.764,0.74210845]
[1770947599883,0.77221132,78.789,78.766,0.74210845]
[1770947602049,0.77221132,78.798,78.771,0.74210845]
[1770947602457,0.77221132,78.797,78.771,0.74210845]
[1770947602654,0.77221132,78.797,78.767,13.43778049]
[1770947602956,0.77221132,78.797,78.768,0.74210845]
[1770947604174,0.77221132,78.797,78.769,12.69534969]
[1770947604658,0.77221132,78.797,78.77,0.74210845]
[1770947605250,0.77221132,78.795,78.769,12.69534969]
[1770947605767,31.72153551,78.811,78.771,0.74210845]
[1770947605768,0.77221132,78.801,78.771,0.74210845]
[1770947606369,50.70971979,78.881,78.773,0.74210845]
[1770947606578,0.77221132,78.816,78.791,0.74210845]
[1770947608374,0.77221132,78.816,78.793,0.74210845]
[1770947609995,0.77221132,78.816,78.787,12.69239643]
[1770947611255,0.77221132,78.816,78.788,0.78447166]
[1770947612573,0.77221132,78.816,78.79,0.78447166]
[1770947615078,0.75488065,78.815,78.79,0.78447166]
[1770947615663,0.75488065,78.815,78.791,12.6918049]
[1770947616188,0.75488065,78.815,78.792,0.73085346]
[1770947618283,0.75488065,78.815,78.793,12.69148274]
[1770947618982,0.75488065,78.815,78.79,0.73085346]
[1770947619593,0.75488065,78.813,78.785,0.73085346]
[1770947620186,0.75488065,78.813,78.786,13.42346382]
[1770947620886,0.75488065,78.813,78.781,12.69333622]
[1770947621065,0.75488065,78.809,78.781,12.69333622]
[1770947621380,0.75488065,78.809,78.771,0.73085346]
[1770947621571,0.75488065,78.799,78.761,13.42749265]
[1770947621772,0.75488065,78.799,78.762,0.73085346]
[1770947626587,0.75488065,78.797,78.762,0.73085346]
[1770947627294,0.75488065,78.797,78.76,4.16829698]
[1770947627797,3.96829698,78.79,78.761,12.69663919]
[1770947627993,0.75488065,78.789,78.761,12.69663919]
[1770947628195,0.75488065,78.789,78.761,13.42749265]
[1770947629894,0.75488065,78.788,78.762,0.73085346]
[1770947632683,0.75488065,78.786,78.76,0.2]
[1770947633498,0.75488065,78.786,78.76,12.89670198]
[1770947634203,0.75488065,78.786,78.761,0.73085346]
[1770947636099,0.75488065,78.784,78.761,0.73085346]
[1770947636301,0.75488065,78.784,78.76,0.2]
[1770947638502,0.75488065,78.769,78.75,0.2]
[1770947638884,0.75488065,78.769,78.733,12.70105711]
[1770947639084,0.75488065,78.759,78.732,0.73085346]
[1770947639699,0.75488065,78.759,78.72,4.16923665]
[1770947640029,0.75488065,78.749,78.721,0.73085346]
[1770947640204,3.96923665,78.74,78.72,0.2]
[1770947640423,0.68323402,78.737,78.72,0.2]
[1770947640709,0.68323402,78.771,78.731,0.75065341]
[1770947640892,0.68323402,78.782,78.751,0.75065341]
[1770947642215,0.68323402,78.78,78.751,0.75065341]
[1770947643516,0.68323402,78.779,78.753,0.75065341]
[1770947644601,0.68323402,78.785,78.761,0.75065341]
[1770947645711,0.68323402,78.785,78.763,0.75065341]
[1770947646588,0.68323402,78.783,78.758,0.75065341]
[1770947646990,0.68323402,78.783,78.759,12.69696161]
[1770947647406,0.68323402,78.783,78.76,0.75065341]
[1770947648231,0.68323402,78.783,78.759,12.69696161]
[1770947648519,0.68323402,78.783,78.76,0.75065341]
[1770947648718,0.68323402,78.779,78.74,3.96923665]
[1770947648909,0.68323402,78.759,78.731,0.75065341]
[1770947650517,0.68323402,78.766,78.733,0.75065341]
[1770947652211,0.68323402,78.759,78.732,12.70131585]
[1770947652392,0.68323402,78.759,78.728,0.75065341]
[1770947652393,0.68323402,78.759,78.728,13.45255446]
[1770947652712,0.68323402,78.759,78.723,31.7568197]
[1770947652713,0.68323402,78.757,78.723,13.45327089]
[1770947652902,0.68323402,78.749,78.724,0.75065341]
[1770947653824,0.68323402,78.749,78.725,12.70244522]
[1770947654113,0.68323402,78.749,78.725,13.45309863]
[1770947654419,0.68323402,78.749,78.726,0.75065341]
[1770947657500,0.68323402,78.749,78.727,13.45277593]
[1770947657816,0.68323402,78.749,78.728,0.75065341]
[1770947660726,0.68323402,78.749,78.729,12.70179984]
[1770947662540,0.68323402,78.749,78.72,0.2]
[1770947662541,0.68323402,78.747,78.72,0.2]
[1770947662908,0.68323402,78.747,78.72,0.95065341]
[1770947663435,0.68323402,78.747,78.721,0.75065341]
[1770947663608,0.68323402,78.739,78.711,0.75065341]
[1770947663807,0.68323402,78.729,78.71,0.2]
[1770947664417,0.68323402,78.729,78.71,0.95065341]
[1770947664822,0.68323402,78.729,78.711,0.75065341]
[1770947665326,0.68323402,78.729,78.71,0.2]
[1770947667507,12.70188078,78.729,78.71,0.2]
[1770947667717,0.68323402,78.728,78.71,0.2]
[1770947668031,0.68323402,78.719,78.69,0.2]
[1770947668208,3.96923665,78.76,78.69,0.2]
[1770947668209,0.68323402,78.709,78.69,0.2]
[1770947668414,0.68323402,78.699,78.678,0.75065341]
[1770947668616,0.68323402,78.699,78.673,0.75065341]
[1770947669316,0.68323402,78.699,78.667,12.71180046]
[1770947669317,0.68323402,78.689,78.67,12.91117674]
[1770947669518,0.68323402,78.689,78.67,0.2]
[1770947669720,0.68323402,78.687,78.659,0.75065341]
[1770947670307,0.68323402,78.687,78.656,12.71356072]
[1770947670308,0.68323402,78.669,78.65,0.2]
[1770947670531,0.7283889,78.683,78.652,0.71160208]
[1770947670926,0.7283889,78.679,78.652,0.71160208]
[1770947671220,12.70841805,78.688,78.65,0.2]
[1770947671221,0.7283889,78.669,78.65,0.2]
[1770947671833,0.7283889,78.659,78.63,0.2]
[1770947672020,0.7283889,78.649,78.63,0.2]
[1770947672336,0.7283889,78.666,78.632,0.71160208]
[1770947672531,0.7283889,78.659,78.632,0.71160208]
[1770947672734,12.71155864,78.669,78.63,0.2]
[1770947672735,0.7283889,78.649,78.63,0.2]
[1770947673035,0.69248059,78.639,78.605,0.69744431]
[1770947673233,0.69248059,78.619,78.597,13.42048624]
[1770947673438,0.69248059,78.619,78.597,0.69744431]
[1770947673614,0.69248059,78.619,78.571,52.16]
[1770947673828,3.96923665,78.6,78.574,0.69744431]
[1770947674217,0.69248059,78.599,78.569,0.69744431]
[1770947674534,0.69248059,78.606,78.569,0.69744431]
[1770947674714,3.96923665,78.62,78.571,0.69744431]
[1770947674920,0.69248059,78.619,78.571,0.69744431]
[1770947675133,3.96923665,78.61,78.571,0.69744431]
[1770947675335,3.96923665,78.6,78.571,0.69744431]
[1770947675558,0.69248059,78.599,78.573,0.69744431]
[1770947677226,3.96923665,78.6,78.573,0.69744431]
[1770947677419,0.69248059,78.606,78.573,0.69744431]
[1770947677630,0.69248059,78.606,78.575,0.69744431]
[1770947677819,0.69248059,78.615,78.575,0.69744431]
[1770947678132,0.69248059,78.615,78.581,0.69744431]
[1770947678639,3.96923665,78.6,78.575,0.69744431]
[1770947678823,0.69248059,78.603,78.575,0.69744431]
[1770947679441,3.96923665,78.6,78.575,0.69744431]
[1770947679829,0.69248059,78.603,78.577,0.69744431]
[1770947680028,3.96923665,78.61,78.577,0.69744431]
[1770947680223,0.69248059,78.609,78.577,0.69744431]
[1770947680624,0.69248059,78.617,78.577,0.69744431]
[1770947681140,0.69248059,78.617,78.576,44.54286295]
[1770947681141,0.69248059,78.617,78.581,0.69744431]
[1770947681936,0.69248059,78.609,78.582,0.69744431]
[1770947682565,0.69248059,78.617,78.582,0.69744431]
[1770947683419,0.69248059,78.63,78.591,0.69744431]
[1770947684049,0.69248059,78.63,78.593,0.69744431]
[1770947684255,0.69248059,78.646,78.611,0.69744431]
[1770947684750,3.96923665,78.64,78.611,0.69744431]
[1770947685249,0.69248059,78.639,78.611,0.69744431]
[1770947686140,0.69248059,78.639,78.613,0.69744431]
[1770947686341,0.69248059,78.639,78.612,12.72070421]
[1770947686539,0.69248059,78.649,78.613,0.69744431]
[1770947686943,0.69248059,78.648,78.613,0.69744431]
[1770947687146,3.96923665,78.64,78.613,0.69744431]
[1770947687348,0.69248059,78.639,78.613,0.69744431]
[1770947687845,0.69248059,78.639,78.603,0.69744431]
[1770947688227,0.69248059,78.629,78.59,31.81041136]
[1770947688433,0.69248059,78.619,78.591,12.72410326]
[1770947688641,0.69248059,78.619,78.592,0.69744431]
[1770947690058,0.69248059,78.629,78.592,0.69744431]
[1770947690448,0.69248059,78.629,78.594,0.69744431]
[1770947692050,3.96923665,78.64,78.601,0.69744431]
[1770947692255,31.78679957,78.649,78.593,44.53322814]
[1770947692256,4.66171724,78.65,78.611,0.69744431]
[1770947692436,0.69248059,78.649,78.613,0.69744431]
[1770947692635,0.69248059,78.648,78.613,0.69744431]
[1770947693164,0.69248059,78.639,78.612,44.52246475]
[1770947694058,0.69248059,78.639,78.612,12.72070421]
[1770947694455,0.69248059,78.639,78.613,0.69744431]
[1770947694640,0.69248059,78.639,78.614,13.4178249]
[1770947694841,0.69248059,78.639,78.615,0.69744431]
[1770947695052,12.71471983,78.649,78.615,0.69744431]
[1770947695053,0.69248059,78.649,78.615,0.69744431]
[1770947696452,0.69248059,78.649,78.617,0.69744431]
[1770947697265,4.61729252,78.657,78.617,0.69744431]
[1770947697266,5.30977311,78.657,78.617,0.69744431]
[1770947697573,114.4662172,78.9,78.619,0.69744431]
[1770947697574,0.69248059,78.649,78.619,0.69744431]
[1770947697951,0.69248059,78.639,78.618,52.85744431]
[1770947698151,3.98341905,78.64,78.619,0.69744431]
[1770947698550,0.69248059,78.639,78.616,12.72005698]
[1770947699441,0.69248059,78.639,78.616,13.41750129]
[1770947700154,0.69248059,78.639,78.617,0.69744431]
[1770947700360,0.67477477,78.649,78.617,0.69744431]
[1770947700661,0.67477477,78.659,78.617,0.69744431]
[1770947701043,0.67477477,78.659,78.621,0.67926968]
[1770947701249,0.67477477,78.649,78.621,0.67926968]
[1770947702361,0.67477477,78.649,78.623,0.67926968]
[1770947703546,0.67477477,78.649,78.624,12.71876271]
[1770947704653,0.67477477,78.639,78.611,12.72086603]
[1770947705761,0.67477477,78.619,78.584,12.72523668]
[1770947706060,0.67477477,78.619,78.583,0.67926968]
[1770947706061,0.67477477,78.599,78.568,12.72782812]
[1770947706658,0.67477477,78.599,78.567,52.85926968]
[1770947706843,0.67477477,78.589,78.567,52.18]
[1770947707050,0.67477477,78.589,78.563,12.72850136]
[1770947708864,39.54,78.612,78.554,12.73002071]
[1770947708865,0.67477477,78.579,78.554,12.73002071]
[1770947709572,0.67477477,78.579,78.55,0.2]
[1770947709573,0.67477477,78.569,78.55,0.2]
[1770947709764,44.53606147,78.588,78.55,0.2]
[1770947709765,0.67477477,78.559,78.55,0.2]
[1770947710472,0.67477477,78.559,78.54,0.2]
[1770947711470,0.67477477,78.557,78.54,0.2]
[1770947711760,0.67477477,78.566,78.541,12.73220356]
[1770947711971,0.67477477,78.566,78.542,0.67926968]
[1770947712273,0.67477477,78.566,78.54,0.2]
[1770947712274,0.67477477,78.559,78.54,0.2]
[1770947714264,0.67477477,78.557,78.54,0.2]
[1770947715471,0.67477477,78.555,78.54,0.2]
[1770947717050,8.90597887,78.57,78.541,0.67926968]
[1770947717250,0.67477477,78.569,78.542,0.67926968]
[1770947717666,0.67477477,78.586,78.542,0.67926968]
[1770947717868,0.67477477,78.585,78.542,0.67926968]
[1770947718070,0.67477477,78.579,78.542,0.67926968]
[1770947718250,12.72494933,78.586,78.541,44.56271246]
[1770947718251,0.67477477,78.569,78.541,12.73220356]
[1770947718456,0.67477477,78.569,78.54,0.2]
[1770947718884,0.67477477,78.569,78.54,0.87926968]
[1770947719173,0.67477477,78.567,78.54,0.87926968]
[1770947719479,0.67477477,78.567,78.542,0.67926968]
[1770947719972,0.67477477,78.579,78.542,0.67926968]
[1770947720761,8.90597887,78.59,78.551,0.67926968]
[1770947720762,0.67477477,78.588,78.551,0.67926968]
[1770947721074,0.67477477,78.588,78.553,0.67926968]
[1770947724071,0.67477477,78.588,78.552,44.55647214]
[1770947724072,0.67477477,78.619,78.581,0.67926968]
[1770947725283,0.67477477,78.599,78.574,0.67926968]
[1770947725657,0.67477477,78.609,78.574,0.67926968]
[1770947726071,0.67477477,78.607,78.574,0.67926968]
[1770947726277,0.67477477,78.607,78.571,12.72729393]
[1770947726478,8.90597887,78.63,78.581,0.67926968]
[1770947726674,0.67477477,78.646,78.601,0.67926968]
[1770947726675,0.67477477,78.639,78.601,0.67926968]
[1770947727178,0.67477477,78.629,78.593,0.67926968]
[1770947728261,0.67477477,78.619,78.593,0.67926968]
[1770947728478,0.67477477,78.619,78.583,52.1]
[1770947728479,0.67477477,78.619,78.592,12.72392336]
[1770947728785,0.67477477,78.619,78.584,12.72523668]
[1770947729367,0.67477477,78.619,78.584,13.40450636]
[1770947729568,0.67477477,78.609,78.584,13.40450636]
[1770947732381,0.68376439,78.627,78.59,8.90597887]
[1770947732567,0.68376439,78.627,78.591,0.67150773]
[1770947732771,0.68376439,78.619,78.585,0.67150773]
[1770947733477,0.70012819,78.609,78.585,0.67150773]
[1770947733874,0.70012819,78.607,78.585,0.67150773]